bitfinex/quotes_ETHUSD_20251122
["timestamp","ask_amount","ask_price","bid_price","bid_amount"]
[1763835514306,0.002,2753.1,2753.0,3.73240101]
[1763835514838,0.002,2753.1,2753.0,6.53840256]
[1763835517745,0.002,2753.1,2753.0,3.73240101]
[1763835518049,0.002,2753.1,2753.0,3.63240101]
[1763835518624,0.002,2753.1,2753.0,3.73240101]
[1763835519117,0.002,2753.1,2753.0,4.63939365]
[1763835519743,0.002,2753.1,2753.0,7.4453952]
[1763835520348,0.002,2753.1,2753.0,4.63939365]
[1763835520522,0.002,2753.1,2753.0,7.4453952]
[1763835523728,0.002,2753.1,2753.0,7.59090821]
[1763835525381,0.002,2753.1,2753.0,11.47090821]
[1763835526777,0.002,2753.1,2753.0,11.3253952]
[1763835527341,0.4982,2753.1,2753.0,4.63939365]
[1763835528579,0.002,2753.1,2753.0,4.63939365]
[1763835531794,0.4982,2753.1,2753.0,4.63939365]
[1763835531991,0.9595,2753.1,2753.0,4.53939365]
[1763835534176,0.4982,2753.1,2753.0,4.53939365]
[1763835534493,0.9595,2753.1,2753.0,4.53939365]
[1763835534695,0.9595,2753.1,2753.0,4.63939365]
[1763835535600,0.9595,2753.1,2752.8,0.001]
[1763835535809,0.6822,2752.9,2752.8,0.001]
[1763835535962,1.07735015,2752.9,2752.8,0.001]
[1763835536161,1.53865015,2752.9,2752.8,0.001]
[1763835536397,1.1435,2752.9,2752.8,0.001]
[1763835536994,1.1435,2752.9,2752.8,3.63366492]
[1763835537382,1.1435,2752.9,2752.8,0.001]
[1763835544709,3.94950155,2752.9,2752.8,0.001]
[1763835548992,5.04137347,2752.9,2752.8,0.001]
[1763835549192,5.54571082,2752.9,2752.8,0.001]
[1763835549488,2.73970927,2752.9,2752.8,0.001]
[1763835550302,1.1435,2752.9,2752.8,0.001]
[1763835550618,2.23537192,2752.9,2752.8,0.001]
[1763835550817,0.186,2752.9,2752.8,0.001]
[1763835551224,1.1506,2752.9,2752.8,0.001]
[1763835553321,0.6583,2752.9,2752.8,0.001]
[1763835553492,0.6771,2753.1,2752.8,0.001]
[1763835555515,0.4723,2752.9,2752.8,0.001]
[1763835555907,0.9646,2752.9,2752.8,0.001]
[1763835560241,0.1848,2753.1,2752.8,0.101]
[1763835560407,0.6771,2753.1,2752.8,0.101]
[1763835561038,0.002,2753.1,2752.9,0.03632532]
[1763835561342,0.002,2753.1,2752.8,0.101]
[1763835562741,0.002,2753.1,2753.0,0.1]
[1763835563822,0.002,2753.1,2753.0,3.73240101]
[1763835572481,0.002,2753.1,2753.0,4.63939365]
[1763835572978,0.002,2753.1,2753.0,7.64697171]
[1763835573482,0.002,2753.1,2753.0,7.79248631]
[1763835582523,0.002,2753.1,2753.0,8.19799031]
[1763835583776,0.002,2753.1,2753.0,4.78490825]
[1763835584175,0.002,2753.1,2753.0,7.79248631]
[1763835585272,0.002,2753.1,2753.0,8.19799031]
[1763835585882,0.002,2753.1,2753.0,12.07799031]
[1763835587197,0.002,2753.4,2753.1,1.31249664]
[1763835587398,0.002,2753.4,2753.3,4.4200747]
[1763835587690,0.002,2753.7,2753.6,0.505504]
[1763835587885,0.002,2753.7,2753.6,4.4200747]
[1763835588285,0.002,2753.7,2753.6,5.1022747]
[1763835590600,0.002,2753.7,2753.6,8.73388422]
[1763835590785,0.002,2753.7,2753.6,12.61388422]
[1763835593926,0.002,2754.0,2753.9,0.505504]
[1763835594221,0.002,2754.0,2753.9,8.3000747]
[1763835594594,0.002,2754.0,2753.9,8.4455295]
[1763835596504,0.002,2754.0,2753.9,12.07674341]
[1763835601839,0.002,2754.3,2753.9,12.07674341]
[1763835602041,0.002,2754.3,2754.2,4.4200747]
[1763835602244,0.002,2754.8,2754.4,0.505504]
[1763835602445,0.1828,2756.2,2754.6,4.4200747]
[1763835602446,0.6952,2755.4,2754.6,4.4200747]
[1763835602612,0.6803,2755.6,2754.9,4.4200747]
[1763835603055,0.6803,2755.6,2754.9,5.1003747]
[1763835603745,0.6803,2755.6,2754.9,8.73027052]
[1763835603906,0.4996,2755.5,2754.9,8.73027052]
[1763835604103,0.4563,2755.0,2754.9,5.31718846]
[1763835604414,0.002,2755.0,2754.9,5.31718846]
[1763835604738,0.002,2755.0,2754.9,8.73027052]
[1763835605434,0.002,2755.0,2754.9,9.45130604]
[1763835608541,0.002,2755.0,2754.9,13.33130604]
[1763835608844,0.002,2755.6,2755.1,0.405504]
[1763835609057,0.002,2755.6,2755.2,3.51308206]
[1763835610412,0.4691,2755.3,2755.2,7.14258264]
[1763835610748,0.934,2755.3,2755.2,4.13500458]
[1763835611048,0.934,2755.3,2755.2,3.72950058]
[1763835612418,0.934,2755.3,2755.2,4.66350058]
[1763835612929,0.4691,2755.3,2755.2,3.72950058]
[1763835613329,0.934,2755.3,2755.2,4.66350058]
[1763835613851,0.002,2755.3,2755.2,5.06900458]
[1763835614349,0.4691,2755.3,2755.2,5.06900458]
[1763835614527,0.934,2755.3,2755.2,8.94900458]
[1763835617464,0.934,2755.3,2755.2,8.54350058]
[1763835617620,0.934,2755.3,2755.2,7.60950058]
[1763835619341,0.934,2755.3,2755.2,7.50950058]
[1763835620034,0.934,2755.3,2755.2,3.62950058]
[1763835621651,0.934,2755.3,2755.1,3.62962729]
[1763835621826,0.4649,2755.2,2755.1,3.62962729]
[1763835622026,0.932,2755.2,2755.1,3.62962729]
[1763835622236,0.932,2755.2,2755.0,3.62973584]
[1763835622446,0.002,2755.3,2754.9,7.50981553]
[1763835622447,0.932,2755.1,2754.9,7.50981553]
[1763835622650,0.4671,2755.0,2754.9,7.50981553]
[1763835622851,0.932,2755.0,2754.9,7.50981553]
[1763835626250,0.934,2755.0,2754.9,7.50981553]
[1763835626561,0.934,2755.0,2754.8,0.001]
[1763835626761,0.932,2754.9,2754.8,0.001]
[1763835631871,0.002,2755.0,2754.9,0.1]
[1763835632046,0.4669,2755.0,2754.9,0.1]
[1763835632250,0.934,2755.0,2754.9,1.00699264]
[1763835632856,0.002,2755.0,2754.9,1.00699264]
[1763835633061,0.002,2755.0,2754.9,3.80952524]
[1763835634365,0.002,2755.0,2754.9,7.43942106]
[1763835637487,0.983,2755.0,2754.9,4.53688846]
[1763835637640,0.983,2755.0,2754.9,4.63688846]
[1763835638370,0.983,2755.0,2754.9,8.51688846]
[1763835643482,0.983,2755.0,2754.9,8.51788846]
[1763835644264,0.9528,2755.0,2754.9,8.51788846]
[1763835646400,0.9528,2755.0,2754.9,8.41788846]
[1763835647196,0.9528,2755.0,2754.9,8.51788846]
[1763835649610,0.9528,2755.0,2754.9,8.41788846]
[1763835650192,0.9528,2755.0,2754.9,4.53788846]
[1763835651106,0.9528,2755.0,2754.9,3.63089582]
[1763835651698,0.9528,2755.0,2754.9,0.001]
[1763835660502,1.60858652,2755.0,2754.9,0.001]
[1763835661500,1.60858652,2755.0,2754.8,0.001]
[1763835661825,3.7177326,2754.9,2754.8,0.001]
[1763835663123,0.9152,2754.9,2754.8,0.001]
[1763835666133,3.7177326,2754.9,2754.8,0.001]
[1763835667430,4.08970586,2754.9,2754.8,0.001]
[1763835667602,1.28717326,2754.9,2754.8,0.001]
[1763835667806,0.9152,2754.9,2754.8,0.001]
[1763835673248,3.7177326,2754.9,2754.8,0.001]
[1763835677543,4.1232366,2754.9,2754.8,0.001]
[1763835677952,4.1252366,2754.9,2754.8,0.001]
[1763835678569,5.03222924,2754.9,2754.8,0.001]
[1763835678989,5.53565216,2754.9,2754.8,0.001]
[1763835682871,5.73865787,2754.9,2754.8,0.001]
[1763835683568,5.88415553,2754.9,2754.8,0.001]
[1763835686404,6.22404802,2754.9,2754.8,0.001]
[1763835687188,5.88415553,2754.9,2754.8,0.001]
[1763835687360,6.22409133,2754.9,2754.8,0.001]
[1763835688856,9.25621033,2754.9,2754.8,0.001]
[1763835689354,6.22409133,2754.9,2754.8,0.001]
[1763835692092,5.88415553,2754.9,2754.8,0.001]
[1763835692801,5.47865153,2754.9,2754.8,0.001]
[1763835693800,1.31249664,2754.8,2754.6,0.001]
[1763835693999,1.31249664,2754.8,2754.2,0.001]
[1763835694000,4.31803495,2754.4,2754.2,0.001]
[1763835694340,2.14476771,2754.3,2753.4,0.001]
[1763835694508,0.4923,2753.5,2753.4,0.001]
[1763835694808,0.9905,2753.5,2753.4,0.001]
[1763835695185,1.13605113,2753.5,2753.4,0.001]
[1763835695386,1.56884007,2753.5,2753.4,0.001]
[1763835696173,1.97434407,2753.5,2753.4,0.001]
[1763835698313,1.07064007,2753.5,2753.4,0.001]
[1763835698501,0.14555113,2753.5,2753.4,0.001]
[1763835698810,0.6805,2753.9,2753.4,0.001]
[1763835699110,0.14554001,2753.6,2753.4,0.001]
[1763835699894,3.49663831,2754.2,2753.4,0.001]
[1763835700094,0.14552889,2753.8,2753.4,0.001]
[1763835700315,3.49663831,2754.5,2753.4,0.001]
[1763835700618,3.49663831,2754.5,2753.5,0.1]
[1763835700619,0.90799264,2754.1,2753.5,0.1]
[1763835702827,0.90699264,2754.4,2753.6,7.26321904]
[1763835703024,0.90699264,2754.7,2753.6,10.89482856]
[1763835703193,0.14550189,2754.5,2753.8,0.1]
[1763835705225,0.4931,2754.9,2754.0,0.1]
[1763835705813,0.4931,2754.9,2754.1,0.1]
[1763835707332,0.4931,2754.9,2754.2,3.63081838]
[1763835709101,0.4931,2754.9,2754.2,7.26163676]
[1763835709603,3.49863831,2754.9,2754.2,7.26163676]
[1763835710040,0.002,2754.9,2754.3,0.1]
[1763835710332,0.002,2754.9,2754.5,0.1]
[1763835711429,0.002,2754.9,2754.6,3.63029114]
[1763835713246,0.4958,2754.7,2754.4,3.63052257]
[1763835713427,0.4958,2754.7,2754.3,3.63066036]
[1763835713746,0.4911,2754.6,2754.3,3.63066036]
[1763835714042,0.002,2754.9,2754.3,7.36134692]
[1763835714250,0.4911,2754.8,2754.3,7.26134692]
[1763835716655,0.002,2754.9,2754.2,7.36163676]
[1763835718141,0.002,2754.9,2754.4,0.1]
[1763835719664,0.002,2754.9,2754.5,7.26084588]
[1763835721630,0.4958,2754.6,2754.3,3.63068656]
[1763835721821,0.4911,2754.8,2754.3,7.26137312]
[1763835722318,0.002,2754.9,2754.3,7.26137312]
[1763835722520,0.002,2754.9,2754.3,3.63068656]
[1763835722876,0.4911,2754.8,2754.3,7.26137312]
[1763835723654,0.002,2754.9,2754.3,7.26137312]
[1763835723872,0.002,2754.9,2754.5,0.1]
[1763835724159,0.002,2754.9,2754.7,0.1]
[1763835725360,0.002,2754.9,2754.8,0.1]
[1763835725715,0.002,2754.9,2754.8,3.73002758]
[1763835726917,0.002,2754.9,2754.8,4.63702022]
[1763835729438,0.002,2754.9,2754.8,4.78245651]
[1763835731039,0.002,2754.9,2754.8,3.63002758]
[1763835731542,0.002,2754.9,2754.8,3.73002758]
[1763835732447,0.002,2754.9,2754.8,3.63002758]
[1763835733335,0.002,2754.9,2754.6,7.26058228]
[1763835733560,0.002,2754.9,2754.6,7.36058228]
[1763835734468,0.4544,2754.7,2754.6,4.53728378]
[1763835734652,0.6865,2754.9,2754.6,8.16757492]
[1763835736676,0.4544,2754.7,2754.6,3.63029114]
[1763835736867,0.9523,2754.7,2754.6,3.63029114]
[1763835737740,0.4544,2754.7,2754.4,3.63053444]
[1763835737947,0.4544,2754.5,2754.4,3.63053444]
[1763835739406,0.4979,2754.8,2754.3,7.36136079]
[1763835740275,0.4979,2754.8,2754.3,7.26136079]
[1763835743581,0.4544,2754.4,2754.3,3.63067423]
[1763835744687,0.9523,2754.4,2754.3,3.63067423]
[1763835745758,0.4544,2754.4,2754.3,3.63067423]
[1763835746107,0.4544,2754.4,2754.1,0.001]
[1763835746392,0.4544,2754.2,2754.1,3.63190238]
[1763835746553,0.4544,2754.2,2754.1,0.001]
[1763835746754,0.9523,2754.2,2754.1,0.001]
[1763835754444,0.002,2754.8,2754.3,0.1]
[1763835755021,0.4999,2754.8,2754.3,0.1]
[1763835755797,0.002,2754.8,2754.3,0.1]
[1763835756224,0.4657,2754.8,2754.4,7.26110948]
[1763835757937,0.4698,2754.5,2754.4,3.63055474]
[1763835758228,0.4698,2754.5,2754.2,3.63081838]
[1763835758431,0.4698,2754.4,2754.2,3.63081838]
[1763835759211,0.9461,2754.4,2754.2,7.26163676]
[1763835759620,0.4698,2754.4,2754.2,7.26163676]
[1763835759823,0.002,2754.8,2754.2,7.36163676]
[1763835760539,0.002,2754.8,2754.2,3.73081838]
[1763835760696,0.002,2754.8,2754.2,7.36163676]
[1763835760899,0.4783,2754.8,2754.2,7.36163676]
[1763835764638,0.002,2754.8,2754.2,7.36163676]
[1763835764806,0.002,2754.8,2754.4,0.1]
[1763835765003,0.002,2754.8,2754.5,3.63042294]
[1763835765217,0.4783,2754.8,2754.5,3.63042294]
[1763835772072,0.4783,2754.8,2754.5,7.26084588]
[1763835772073,0.002,2754.8,2754.5,7.26084588]
[1763835772375,0.002,2754.8,2754.6,0.1]
[1763835775371,0.002,2754.8,2754.7,3.63015936]
[1763835777465,0.002,2754.8,2754.7,7.61015936]
[1763835778450,0.002,2754.8,2754.7,3.73015936]
[1763835779368,0.002,2754.8,2754.7,4.637152]
[1763835780483,0.002,2754.8,2754.7,4.537152]
[1763835780641,0.002,2754.8,2754.7,4.637152]
[1763835780858,0.002,2754.8,2754.7,8.517152]
[1763835782072,0.002,2754.8,2754.7,4.637152]
[1763835782286,0.002,2754.8,2754.7,3.63015936]
[1763835782569,0.4718,2754.8,2754.7,3.63015936]
[1763835783572,0.9481,2754.8,2754.4,0.1]
[1763835783777,0.4698,2754.7,2754.4,0.1]
[1763835784070,0.9461,2754.7,2754.4,0.1]
[1763835784644,0.9461,2754.7,2754.3,8.16836576]
[1763835784844,0.4763,2754.6,2754.4,0.1]
[1763835785162,0.002,2754.8,2754.4,0.1]
[1763835785675,0.4783,2754.8,2754.5,7.26084588]
[1763835788082,0.4603,2754.6,2754.5,3.63042294]
[1763835788460,0.002,2754.8,2754.5,7.26084588]
[1763835788781,0.4627,2754.8,2754.5,7.26084588]
[1763835789078,3.26452009,2754.6,2754.1,0.001]
[1763835789283,0.4603,2754.2,2754.1,0.001]
[1763835789480,0.921,2754.2,2754.1,0.001]
[1763835789655,0.921,2754.2,2754.1,3.63195021]
[1763835790184,0.921,2754.2,2754.1,0.001]
[1763835791678,0.4607,2754.6,2754.1,0.001]
[1763835792266,0.4607,2754.6,2754.1,0.101]
[1763835792471,0.002,2754.8,2754.3,0.1]
[1763835792785,0.002,2754.8,2754.4,0.1]
[1763835793280,0.4627,2754.8,2754.4,0.1]
[1763835795159,0.4627,2754.8,2754.5,3.63042294]
[1763835795352,0.4603,2754.6,2754.5,3.63042294]
[1763835795785,0.921,2754.6,2754.5,3.63042294]
[1763835796685,0.4603,2754.6,2754.5,3.63042294]
[1763835796883,0.002,2754.8,2754.5,7.36084588]
[1763835797394,0.002,2754.7,2754.5,7.36084588]
[1763835797782,0.002,2754.7,2754.6,2.90422009]
[1763835799765,0.002,2754.7,2754.6,6.53451123]
[1763835801171,0.002,2754.7,2754.6,3.63029114]
[1763835801403,0.002,2754.7,2754.6,3.73029114]
[1763835804410,0.002,2754.7,2754.6,7.44150387]
[1763835804781,0.002,2754.7,2754.6,4.63728378]
[1763835804976,0.002,2754.7,2754.6,4.67358669]
[1763835805185,0.002,2754.7,2754.6,4.63728378]
[1763835807575,0.002,2754.7,2754.6,8.51728378]
[1763835813545,0.002,2754.7,2754.6,8.92278778]
[1763835816742,0.002,2754.7,2754.6,8.51728378]
[1763835816913,0.4891,2754.7,2754.6,8.51728378]
[1763835817115,0.002,2754.7,2754.6,8.51728378]
[1763835818752,0.002,2754.7,2754.6,8.92278778]
[1763835821637,0.002,2754.7,2754.6,8.51728378]
[1763835825756,0.4923,2754.7,2754.6,8.51728378]
[1763835825977,0.002,2754.7,2754.6,8.51728378]
[1763835827589,0.4923,2754.7,2754.6,8.51728378]
[1763835827748,0.975,2754.7,2754.6,8.51728378]
[1763835828180,0.002,2754.7,2754.0,0.001]
[1763835828451,0.4903,2754.2,2754.1,3.63195021]
[1763835828854,0.973,2754.2,2754.1,3.63195021]
[1763835830201,0.973,2754.2,2754.1,0.001]
[1763835840465,0.973,2754.2,2753.9,0.001]
[1763835840466,1.378504,2754.2,2753.9,0.001]
[1763835840667,0.405504,2753.9,2753.5,0.001]
[1763835840913,0.4903,2753.7,2753.5,0.001]
[1763835841217,0.88784413,2753.6,2753.4,0.001]
[1763835841370,0.4903,2753.5,2753.4,0.001]
[1763835841785,0.973,2753.5,2753.4,0.001]
[1763835846289,0.1948,2753.9,2753.4,0.001]
[1763835846475,0.6804,2753.9,2753.4,0.001]
[1763835846679,0.6804,2753.9,2753.5,3.00244131]
[1763835846985,0.4856,2753.8,2753.6,0.30034413]
[1763835847496,0.4883,2753.7,2753.6,0.30034413]
[1763835847675,0.4883,2753.7,2753.4,0.001]
[1763835847879,0.9739,2753.7,2753.4,0.001]
[1763835848388,0.4883,2753.5,2753.4,0.001]
[1763835848799,0.9739,2753.5,2753.4,0.001]
[1763835849003,0.1948,2753.9,2753.4,0.001]
[1763835849217,0.6804,2753.9,2753.4,0.001]
[1763835849698,0.4883,2753.5,2753.4,0.001]
[1763835851318,0.9739,2753.5,2753.4,0.001]
[1763835854724,0.4883,2753.5,2753.4,0.001]
[1763835854907,0.4856,2753.8,2753.4,0.001]
[1763835855224,0.4856,2754.1,2753.4,0.94431137]
[1763835855392,0.4856,2754.1,2753.4,0.90799264]
[1763835858042,0.4856,2754.1,2753.5,7.26348284]
[1763835858342,0.4856,2754.1,2753.5,7.36348284]
[1763835858509,0.6864,2753.6,2753.5,4.63873406]
[1763835858711,0.6864,2753.6,2753.5,3.63174142]
[1763835858910,1.172,2753.6,2753.5,3.63174142]
[1763835861041,0.6837,2753.9,2753.5,10.89522426]
[1763835861224,0.6837,2753.9,2753.6,0.1]
[1763835861428,0.4856,2753.8,2753.6,0.1]
[1763835861747,0.4883,2753.7,2753.6,0.1]
[1763835862118,0.4883,2753.7,2753.5,7.36348284]
[1763835862423,0.4883,2753.6,2753.5,3.73174142]
[1763835862823,0.1981,2753.9,2753.5,3.63174142]
[1763835863048,0.4856,2753.8,2753.7,0.1]
[1763835863542,0.9739,2753.8,2753.7,0.1]
[1763835863911,0.4883,2753.8,2753.7,0.1]
[1763835864115,0.1981,2753.9,2753.7,0.1]
[1763835864317,0.4856,2754.0,2753.8,0.1]
[1763835864537,0.4856,2754.0,2753.7,0.1]
[1763835865546,0.4856,2754.0,2753.8,7.26269154]
[1763835865749,0.4856,2754.0,2753.8,7.36269154]
[1763835865947,0.4883,2753.9,2753.8,3.73134577]
[1763835866749,0.4883,2753.9,2753.8,3.63134577]
[1763835866951,0.002,2754.1,2753.9,0.1]
[1763835867118,0.4876,2754.1,2753.9,0.1]
[1763835867454,0.4883,2754.0,2753.9,0.1]
[1763835867748,0.4883,2754.0,2753.8,7.36269154]
[1763835867933,1.172,2753.9,2753.8,3.73134577]
[1763835868140,1.172,2753.9,2753.8,3.63134577]
[1763835870019,1.172,2753.9,2753.8,3.73134577]
[1763835871355,1.172,2753.9,2753.8,3.63134577]
[1763835871860,1.172,2753.9,2753.8,3.73134577]
[1763835872561,1.172,2753.9,2753.8,3.63134577]
[1763835873263,1.172,2753.9,2753.8,3.73134577]
[1763835877469,1.172,2753.9,2753.8,3.63134577]
[1763835879332,0.6864,2753.9,2753.8,3.63134577]
[1763835879769,1.1437,2753.9,2753.8,3.63134577]
[1763835880269,1.1437,2753.9,2753.8,3.73134577]
[1763835881030,1.1437,2753.9,2753.8,3.63134577]
[1763835881238,0.002,2754.1,2754.0,0.1]
[1763835881478,0.002,2754.1,2754.0,3.81156095]
[1763835884666,0.002,2754.1,2754.0,7.44264301]
[1763835884869,0.002,2754.1,2754.0,10.24721132]
[1763835885052,0.002,2754.4,2754.1,0.90257943]
[1763835885372,0.002,2754.4,2754.3,5.70913662]
[1763835886944,0.4979,2754.4,2754.3,6.43525487]
[1763835887175,0.002,2754.4,2754.3,7.34224751]
[1763835887572,0.002,2754.4,2754.3,7.44224751]
[1763835888485,0.002,2754.4,2754.3,7.56424751]
[1763835889079,0.002,2754.4,2754.3,8.26324938]
[1763835889247,0.002,2754.4,2754.3,10.36881582]
[1763835891163,0.002,2754.9,2754.4,1.31249664]
[1763835891374,0.002,2754.9,2754.8,0.90699264]
[1763835891690,0.002,2754.9,2754.8,1.12899264]
[1763835892884,1.1492,2754.9,2754.8,0.90699264]
[1763835893108,1.1492,2754.9,2754.8,1.02899264]
[1763835893258,1.1492,2754.9,2754.8,4.75902022]
[1763835893581,1.1492,2754.9,2754.8,3.75202758]
[1763835893963,1.1492,2754.9,2754.8,3.63002758]
[1763835894285,1.1492,2754.9,2754.8,3.75202758]
[1763835896767,1.1492,2754.9,2754.8,3.85202758]
[1763835899080,1.1492,2754.9,2754.8,3.75202758]
[1763835900970,1.1492,2754.9,2754.5,6.68456831]
[1763835901190,0.4573,2754.8,2754.6,0.122]
[1763835901689,0.4959,2754.7,2754.6,3.75229114]
[1763835902214,0.002,2754.9,2754.8,0.1]
[1763835902378,0.002,2755.0,2754.9,0.1]
[1763835902710,0.002,2755.0,2754.9,0.222]
[1763835904170,0.002,2755.0,2754.9,3.85189582]
[1763835905509,0.002,2755.0,2754.9,6.65646413]
[1763835905996,0.002,2755.0,2754.9,9.46103244]
[1763835906498,0.002,2755.3,2754.9,11.482935]
[1763835906698,0.002,2755.3,2755.0,1.41249664]
[1763835908410,0.002,2755.3,2755.0,8.9222607]
[1763835909077,0.002,2755.3,2755.0,11.32132501]
[1763835909301,0.002,2755.3,2755.0,11.44332501]
[1763835912774,0.002,2755.3,2755.0,8.6387567]
[1763835915481,0.002,2755.3,2755.0,9.0442607]
[1763835922925,0.9558,2755.1,2755.0,8.6387567]
[1763835924019,0.9558,2755.1,2755.0,8.5167567]
[1763835924224,0.9558,2755.1,2755.0,8.6387567]
[1763835927122,0.9558,2755.1,2755.0,8.4167567]
[1763835927427,0.9558,2755.1,2755.0,8.5387567]
[1763835927902,0.9558,2755.1,2755.0,8.6387567]
[1763835928301,0.9558,2755.1,2755.0,8.5387567]
[1763835928541,0.9558,2755.1,2755.0,8.6387567]
[1763835928749,0.9558,2755.1,2755.0,8.5387567]
[1763835928905,0.9558,2755.1,2755.0,8.6387567]
[1763835931133,0.9558,2755.1,2755.0,4.7587567]
[1763835932143,0.9558,2755.1,2755.0,4.6367567]
[1763835932439,0.9558,2755.1,2755.0,4.7587567]
[1763835933829,0.9558,2755.1,2755.0,3.85176406]
[1763835934635,0.9558,2755.1,2755.0,3.85276406]
[1763835936739,0.9558,2755.1,2755.0,3.63076406]
[1763835936938,0.9558,2755.1,2755.0,3.75276406]
[1763835940931,0.9558,2755.1,2755.0,0.001]
[1763835945546,1.35197264,2755.1,2755.0,0.001]
[1763835948027,0.9558,2755.1,2755.0,0.001]
[1763835961990,0.4659,2755.1,2755.0,0.001]
[1763835962290,0.9623,2755.1,2755.0,0.001]
[1763835978717,0.002,2755.1,2755.0,0.001]
[1763835978885,0.4583,2755.1,2755.0,0.001]
[1763835979089,0.9153,2755.1,2755.0,0.001]
[1763835979813,1.30742264,2755.1,2755.0,0.001]
[1763835980121,2.05358267,2755.1,2755.0,0.001]
[1763835988910,5.76527803,2755.1,2755.0,0.001]
[1763835989413,5.91078416,2755.1,2755.0,0.001]
[1763835994437,6.48032286,2755.1,2755.0,0.001]
[1763835994620,5.91078416,2755.1,2755.0,0.001]
[1763835995950,5.90951756,2755.1,2755.0,0.001]
[1763835997661,6.47905867,2755.1,2755.0,0.001]
[1763836001070,0.405504,2754.8,2754.7,0.001]
[1763836001241,12.91465723,2754.8,2754.7,0.001]
[1763836001761,9.09692383,2754.8,2754.7,0.001]
[1763836002135,6.29222111,2754.8,2754.7,0.001]
[1763836002334,4.96631975,2754.8,2754.7,0.001]
[1763836003036,2.03961703,2754.8,2754.7,0.001]
[1763836003267,4.96631975,2754.8,2754.7,0.001]
[1763836007671,1.39190567,2754.8,2754.7,0.001]
[1763836007876,0.90699264,2754.8,2754.7,0.001]
[1763836009139,2.80470272,2754.9,2754.7,0.001]
[1763836009340,0.002,2755.1,2754.7,0.001]
[1763836009540,0.14549025,2755.0,2754.7,0.001]
[1763836010043,0.002,2755.1,2754.7,0.001]
[1763836014795,2.80470272,2755.0,2754.7,0.001]
[1763836020906,3.13444299,2755.0,2754.7,0.001]
[1763836021105,0.32974027,2755.0,2754.7,0.001]
[1763836021607,3.13444299,2755.0,2754.7,0.001]
[1763836021829,3.67560672,2754.8,2754.7,0.001]
[1763836022033,5.44709664,2754.7,2754.6,0.001]
[1763836022176,5.96270831,2754.7,2754.6,0.001]
[1763836022372,5.57813731,2754.7,2754.6,0.001]
[1763836024201,5.40954631,2754.7,2754.6,0.001]
[1763836024509,2.82453731,2754.7,2754.6,0.001]
[1763836025574,2.9700625,2754.7,2754.6,0.001]
[1763836026723,6.7951605,2754.7,2754.6,0.001]
[1763836028103,0.405504,2754.5,2754.4,0.001]
[1763836028305,6.80572705,2754.5,2754.4,0.001]
[1763836028492,7.28012705,2754.5,2754.4,0.001]
[1763836028818,9.72576388,2754.5,2754.4,0.001]
[1763836029020,10.45337793,2754.5,2754.4,0.001]
[1763836029207,11.76925471,2754.5,2754.4,0.001]
[1763836029984,12.58825471,2754.5,2754.4,0.001]
[1763836030222,12.2489371,2754.5,2754.4,0.001]
[1763836030398,11.7259371,2754.5,2754.4,0.001]
[1763836031025,11.9429721,2754.5,2754.4,0.001]
[1763836031726,8.9718791,2754.5,2754.4,0.001]
[1763836032725,8.6194791,2754.5,2754.4,0.001]
[1763836033020,7.52231905,2754.5,2754.4,0.001]
[1763836033226,7.64431905,2754.5,2754.4,0.001]
[1763836033423,8.52422305,2754.5,2754.4,0.001]
[1763836035829,5.71952033,2754.5,2754.4,0.001]
[1763836036021,4.26273619,2754.5,2754.4,0.001]
[1763836036217,4.38473619,2754.5,2754.4,0.001]
[1763836036440,0.90699264,2754.5,2754.4,0.001]
[1763836037007,1.35849264,2754.5,2754.4,0.001]
[1763836037224,4.63759536,2754.5,2754.4,0.001]
[1763836037450,5.40877594,2754.5,2754.4,0.001]
[1763836039212,5.81427994,2754.5,2754.4,0.001]
[1763836042034,0.405504,2754.4,2754.3,0.001]
[1763836042248,1.453404,2754.4,2754.3,0.001]
[1763836043151,1.59894507,2754.4,2754.3,0.001]
[1763836043336,2.48759744,2754.4,2754.3,0.001]
[1763836045734,3.73407265,2754.4,2754.3,0.001]
[1763836045951,11.52132937,2754.4,2754.3,0.001]
[1763836046122,9.78322137,2754.4,2754.3,0.001]
[1763836046327,8.78322137,2754.4,2754.3,0.001]
[1763836047141,8.78322137,2754.4,2754.1,0.001]
[1763836047340,9.46404808,2753.9,2753.8,0.001]
[1763836047563,10.23164808,2753.9,2753.8,0.001]
[1763836047747,10.85160822,2753.9,2753.8,0.001]
[1763836048260,11.19145734,2753.9,2753.8,0.001]
[1763836048676,1.31249664,2753.8,2753.5,0.001]
[1763836048966,3.35754237,2753.8,2753.5,0.001]
[1763836049119,4.26730653,2753.8,2753.5,0.001]
[1763836049727,7.27587102,2753.8,2753.5,0.001]
[1763836050150,9.81382702,2753.8,2753.5,0.001]
[1763836051868,9.53862702,2753.8,2753.5,0.001]
[1763836052844,9.53862702,2753.8,2753.6,0.001]
[1763836054371,8.96885871,2753.8,2753.6,0.001]
[1763836059740,6.70610271,2753.8,2753.6,0.001]
[1763836068050,5.78020271,2753.8,2753.6,0.001]
[1763836068254,4.44306113,2753.8,2753.6,0.001]
[1763836069984,4.44506113,2753.8,2753.6,0.001]
[1763836070355,4.78527336,2753.8,2753.6,0.001]
[1763836070664,8.38195336,2753.8,2753.6,0.001]
[1763836070863,9.2385787,2753.8,2753.6,0.001]